[Event "2nd Serbia Open Masters 2022"]
[Site "Novi Sad"]
[Date "2022.06.28"]
[Round "1.34"]
[White "Jain Kashish Manoj"]
[Black "Sadikhov, Ulvi"]
[Result "1-0"]
[ECO "B31"]
[WhiteElo "2271"]
[BlackElo "2491"]
[Annotator "TA"]
[PlyCount "81"]
[EventDate "2022.06.28"]
[EventType "swiss"]
[EventCountry "SRB"]
[SourceTitle "playchess.com"]
[Source "ChessBase"]
[SourceQuality "1"]
[TimeControl "40/5400+30:900+30"]

{[%evp 16,81,29,27,32,22,29,15,25,0,21,16,11,1,41,45,32,25,20,0,0,-4,34,21,38,29,63,60,63,60,60,60,60,60,60,60,62,68,63,34,47,44,55,53,72,57,64,0,408,381,1002,994,29989,29990,29990,29991,29991,29979,7320,7320,1533,0,646,0,1532,1486,1399,1373]} 1. e4 {[%emt 0:00:10]} c5 {[%emt 0:00:20]} 2. Nf3 {[%emt 0:00:23]} Nc6 {[%emt 0:00:14]} 3. Bb5 {[%emt 0:00:22]} Nf6 {[%emt 0:00:29]} 4. Nc3 {[%emt 0:00:13]} g6 {[%emt 0:00:15]} 5. O-O {[%emt 0:00:21]} Bg7 {[%emt 0:00:15]} 6. e5 {[%emt 0:00:47]} Ng4 {[%emt 0:00:25]} 7. Bxc6 {[%emt 0:00:07]} dxc6 {[%emt 0:00:08]} 8. Re1 {[%emt 0:00:13]} O-O {[%emt 0:00:24]} 9. d3 {[%emt 0:00:10]} Nh6 {[%emt 0:04:05] B31: Sicilian: 2...Nc6 3 Bb5 g6.} 10. h3 {[%emt 0:00:12]} b6 {[%emt 0:06:18]} 11. Bf4 {[%emt 0:07:31]} Nf5 $1 {[%emt 0:02:54] The position is equal.} 12. Qd2 {[%emt 0:01:31]} Re8 {[%emt 0:06:42]} 13. Ne4 {[%emt 0:18:33] [#]} Nd4 $146 {[%emt 0:08:47]} ({Predecessor:} 13... Be6 14. Nfg5 Qd7 15. Nxe6 Qxe6 16. Ng5 Qc8 17. e6 f6 18. Nf3 Nd4 19. Nxd4 cxd4 {1-0 (36) Golubev,M (2461)-Okike,D (2157) Chess.com INT 2022}) 14. Nxd4 {[%emt 0:01:07]} Qxd4 {[%emt 0:05:51]} 15. Nc3 {[%emt 0:08:13]} Bf5 {[%emt 0:03:31]} 16. g4 {[%emt 0:08:05]} Be6 {[%emt 0:01:49]} 17. Re4 {[%emt 0:00:17]} Qd7 {[%emt 0:00:43]} 18. Bh6 {[%emt 0:00:57]} Bh8 {[%emt 0:01:20]} 19. Rae1 {[%emt 0:01:40]} Rad8 {[%emt 0:03:33][%cal Oc5c4]} 20. Qf4 {[%emt 0:05:43]} f5 {[%emt 0:09:21]} 21. exf6 $1 {[%emt 0:06:20]} exf6 {[%emt 0:00:09]} 22. R4e3 {[%emt 0:06:46]} Bf7 {[%emt 0:22:44]} 23. Rxe8+ {[%emt 0:14:40]} (23. Ne4 {feels hotter.} f5 24. gxf5 Qxf5 25. Qg3) 23... Rxe8 {[%emt 0:05:31]} 24. Rxe8+ {[%emt 0:00:32]} Qxe8 {[%emt 0:06:29]} 25. Ne4 {[%emt 0:02:00]} Qd8 {[%emt 0:02:17]} 26. h4 {[%emt 0:05:51]} Bd5 {[%emt 0:02:16]} 27. a4 {[%emt 0:02:41] White is more active.} Bxe4 {[%emt 0:02:42]} 28. dxe4 $14 {[%emt 0:07:50][%mdl 4096] Endgame KQB-KQB} Kf7 {[%emt 0:00:04]} 29. Kg2 {[%emt 0:00:45]} Ke6 {[%emt 0:02:00]} 30. b3 {[%emt 0:00:56]} Qd1 {[%emt 0:01:48]} 31. Kh3 {[%emt 0:00:31]} (31. c4 $14) 31... Qxc2 $2 {[%emt 0:00:32][%mdl 8192]} (31... Qh1+ $11 32. Kg3 Qg1+ 33. Kh3 Qh1+ 34. Kg3 Qg1+ 35. Kh3 Qh1+) 32. Qb8 $1 $18 {[%emt 0:00:29][%csl LRa7,LRh8]} Qc3+ $2 {[%emt 0:01:59]} (32... g5 33. Qe8+ (33. Qxh8 Qxf2 34. Qc8+ Ke7 $16) 33... Kd6 34. Bf8+ (34. Qxh8 Qxf2 35. Qb8+ Kd7 $14) 34... Kc7 35. Qf7+ Kd8 36. Be7+ Kc8) 33. Kg2 {[%emt 0:00:22] [#] White wants to mate with Bf8.} f5 {[%emt 0:00:32]} 34. Qe8+ {[%emt 0:00:31]} Kd6 {[%emt 0:00:03]} 35. Qd8+ {[%emt 0:00:01]} Ke6 {[%emt 0:00:05]} 36. gxf5+ {[%emt 0:01:04]} gxf5 {[%emt 0:00:04]} 37. Qe8+ {[%emt 0:00:22]} Kd6 {[%emt 0:00:02]} 38. Qd8+ {[%emt 0:00:03]} (38. Bf4+ $142 Be5 39. Qf8+ Kd7 40. Qxf5+ Ke7 41. Bxe5 Qxb3 42. Qf6+ Ke8 43. Qxc6+ Ke7 44. Qd6+ Ke8 45. Bf6 Qg8+ 46. Bg5) 38... Ke6 {[%emt 0:00:03]} 39. Qe8+ {[%emt 0:01:04]} (39. Qg8+ $142 Kd7 40. Qxh7+ Kd8 41. Bg5+ Kc8 42. Qxf5+ Kb8 43. Bf4+ Kb7 44. e5) 39... Kd6 {[%emt 0:00:04]} 40. Bf4+ {[%emt 0:00:00]} Be5 {[%emt 0:00:00]} 41. Qf8+ {[%emt 0:16:37] Weighted Error Value: White=0.34/Black=0.60} 1-0

[Event "2nd Serbia Open Masters 2022"]
[Site "Novi Sad"]
[Date "2022.06.28"]
[Round "1.35"]
[White "Fernandez, Daniel Howard"]
[Black "Spyratos, Nikolaos"]
[Result "1-0"]
[ECO "A13"]
[WhiteElo "2503"]
[BlackElo "2268"]
[Annotator "TA"]
[PlyCount "119"]
[EventDate "2022.06.28"]
[EventType "swiss"]
[EventCountry "SRB"]
[SourceTitle "playchess.com"]
[Source "ChessBase"]
[SourceQuality "1"]
[TimeControl "40/5400+30:900+30"]

{[%evp 9,119,-4,0,0,31,23,25,0,0,7,8,7,12,0,8,0,0,12,21,0,0,0,0,0,0,0,21,0,31,29,29,3,10,0,0,0,0,0,0,-33,-31,-62,-21,-25,-24,-18,4,14,20,0,0,0,0,0,16,0,0,-50,0,0,0,0,0,0,48,34,279,44,59,0,0,0,0,0,8,8,8,8,8,8,8,8,8,8,8,14,20,29,559,502,458,326,614,585,1405,1198,5081,1055,2417,2229,29966,29966,29971,29972,29979,29980,29980,29981,29980,29981,29976,10445]} 1. Nf3 {[%emt 0:00:53]} Nf6 {[%emt 0:00:20]} 2. c4 {[%emt 0:01:29]} e6 {[%emt 0:00:21]} 3. g3 {[%emt 0:01:48]} a6 {[%emt 0:02:06]} 4. Nc3 {[%emt 0:05:45]} d5 {[%emt 0:03:11]} 5. cxd5 {[%emt 0:03:07]} exd5 {[%emt 0:00:13]} 6. Bg2 {[%emt 0:00:05] A13: English Opening: 1...e6.} Bd6 {[%emt 0:07:06]} 7. O-O {[%emt 0:02:17]} O-O {[%emt 0:00:21] [#]} 8. b3 $146 {[%emt 0:00:34] White has an edge.} ({Predecessor:} 8. d3 Re8 9. Qc2 h6 10. e4 Nc6 11. a3 Bg4 12. Nxd5 Bxf3 13. Bxf3 Nxd5 14. exd5 {1-0 (43) Yevseev,D (2474)-Turov,M (2565) St Petersburg 2021}) 8... c6 {[%emt 0:05:28]} 9. Bb2 {[%emt 0:00:10]} Bg4 {[%emt 0:01:55]} 10. d3 {[%emt 0:08:44]} Re8 {[%emt 0:03:19]} 11. Qc2 {[%emt 0:05:50]} Nbd7 {[%emt 0:01:08]} 12. e4 {[%emt 0:00:49]} dxe4 {[%emt 0:13:43]} 13. dxe4 {[%emt 0:00:21]} Qe7 {[%emt 0:02:59]} 14. Rae1 {[%emt 0:03:22]} (14. Nh4 {keeps more tension.} h6 15. h3 g5 16. Nf5) 14... Bxf3 {[%emt 0:08:37]} 15. Bxf3 {[%emt 0:00:02]} Rad8 {[%emt 0:00:20]} 16. Bg2 {[%emt 0:09:35]} Ne5 {[%emt 0:02:52]} 17. Rd1 {[%emt 0:54:09]} Ba3 {[%emt 0:03:55]} 18. Ba1 {[%emt 0:00:00]} Qc5 {[%emt 0:02:27]} 19. Rxd8 {[%emt 0:00:00]} Rxd8 {[%emt 0:00:08]} 20. Rd1 {[%emt 0:00:00] Inhibits Rd3.} (20. Qe2 $5 {[%cal Rc3b1]}) 20... Rd4 {[%emt 0:06:44]} 21. Qe2 {[%emt 0:00:00]} Qd6 {[%emt 0:03:37]} 22. Rxd4 {[%emt 0:00:00]} Qxd4 {[%emt 0:00:10]} 23. Qf1 {[%emt 0:00:00][%cal Oc3b5] aiming for Nb5!} Qd6 {[%emt 0:08:14]} 24. h3 {[%emt 0:00:00]} Bc5 {[%emt 0:00:58]} 25. Nd1 {[%emt 0:00:00]} h5 {[%emt 0:03:26]} (25... Ng6 $5 {[%cal Rd6g3]} 26. Kh1 Qd2 $15) 26. Qe2 {[%emt 0:00:00]} h4 {[%emt 0:04:59]} 27. gxh4 {[%emt 0:00:00]} g6 {[%emt 0:03:30]} 28. Bc3 {[%emt 0:00:00]} Bb4 {[%emt 0:04:40]} 29. Bxb4 {[%emt 0:00:00]} Qxb4 {[%emt 0:00:03]} 30. f4 {[%emt 0:00:00]} Qd4+ {[%emt 0:01:39]} 31. Nf2 {[%emt 0:00:00]} Ned7 {[%emt 0:01:12]} 32. Bf3 {[%emt 0:00:00]} Nc5 {[%emt 0:00:55]} 33. Kf1 {[%emt 0:03:32]} (33. e5 $11 Nd5 34. Bxd5 cxd5 35. Qd1 Qxd1+ 36. Nxd1) 33... Qa1+ {[%emt 0:01:41]} (33... Ne6 $1 $15 34. Qd1 (34. Nd3 Qc3 $15) 34... Qc3) 34. Kg2 $11 {[%emt 0:00:47]} Qc1 {[%emt 0:01:07] Inhibits Qd2.} 35. f5 {[%emt 0:00:13]} gxf5 {[%emt 0:01:54]} 36. exf5 {[%emt 0:00:02]} Qf4 {[%emt 0:00:14]} (36... Ncd7 $11 {deserves consideration.}) 37. Ng4 $14 {[%emt 0:00:12]} Nfe4 {[%emt 0:01:49] [#]} ({Black should try} 37... Nce4 $14) 38. Bxe4 $2 {[%emt 0:03:29]} (38. Qe1 Kf8 $14) (38. b4 $1 $18 {[%cal Rb4c5]} Qg3+ 39. Kh1 Qxg4 40. hxg4 Ng3+ 41. Kg2 Nxe2 42. Bxe2 (42. bxc5 Nc1 $16)) 38... Nxe4 $18 {[%emt 0:00:07][%mdl 4096] Endgame KQN-KQN} 39. Qd3 {[%emt 0:00:26] Inhibits Qg3+.} (39. Qe3 $14 Qxe3 40. Nxe3) 39... Kh7 $11 {[%emt 0:01:09]} 40. f6 {[%emt 0:00:00]} Kg6 {[%emt 0:00:00]} 41. b4 {[%emt 0:05:03]} Kh5 {[%emt 0:03:14]} 42. Qf3 {[%emt 0:01:20]} Qxf3+ {[%emt 0:01:22]} 43. Kxf3 {[%emt 0:00:03] KN-KN} Nc3 {[%emt 0:03:40]} 44. a3 {[%emt 0:00:02]} Nd5 {[%emt 0:07:00]} 45. Ke4 {[%emt 0:07:32]} Kxh4 {[%emt 0:00:12]} 46. Kf5 {[%emt 0:00:13] Nh6 is the strong threat.} Kh5 {[%emt 0:00:29] Inhibits Nh6.} (46... Kxh3 $2 47. Ne5 Kh4 48. Nxf7 $18) 47. Ne5 {[%emt 0:01:00]} Ne3+ {[%emt 0:00:08]} 48. Ke4 {[%emt 0:00:06]} Nd5 {[%emt 0:01:29][%mdl 8192]} (48... Nc2 $1 $11 {and Black is okay.}) 49. Nxf7 $18 {[%emt 0:00:10] And now Kf5 would win.} Nxf6+ {[%emt 0:00:06] [#]} 50. Kd4 $1 {[%emt 0:01:23] Hoping for Nd8.} Nd7 $2 {[%emt 0:02:10]} (50... b6 51. Ne5 a5 52. Nxc6 axb4 53. Nxb4 (53. axb4 Kh4 $14) 53... Kh4) 51. Nd8 {[%emt 0:02:14]} b5 {[%emt 0:01:07]} 52. Nxc6 {[%emt 0:00:09]} Nb6 {[%emt 0:00:03]} 53. Ne5 {[%emt 0:00:27]} (53. Nb8 $142 Kg6 54. Nxa6) 53... Kh4 {[%emt 0:00:46]} 54. Nd3 {[%emt 0:01:36] Threatens to win with Nc5.} Kxh3 {[%emt 0:00:41]} 55. Nc5 {[%emt 0:00:38] White mates.} Nc4 {[%emt 0:00:51]} 56. a4 {[%emt 0:00:07][%cal Ba3a4,Ba4a5][%mdl 32]} Na3 {[%emt 0:00:31]} 57. a5 {[%emt 0:00:08]} Nc2+ {[%emt 0:00:04]} 58. Kc3 {[%emt 0:00:06]} Ne3 {[%emt 0:00:04]} 59. Nxa6 {[%emt 0:00:04]} Kg4 {[%emt 0:00:27]} 60. Nc7 {[%emt 0:00:02] Weighted Error Value: White=0.13 (very precise) /Black=0.44} 1-0

[Event "2nd Serbia Open Masters 2022"]
[Site "Novi Sad"]
[Date "2022.06.28"]
[Round "1.36"]
[White "Antova, Gabriela"]
[Black "Aditya Mittal"]
[Result "1/2-1/2"]
[ECO "D45"]
[WhiteElo "2293"]
[BlackElo "2490"]
[Annotator "TA"]
[PlyCount "80"]
[EventDate "2022.06.28"]
[EventType "swiss"]
[EventCountry "SRB"]
[SourceTitle "playchess.com"]
[Source "ChessBase"]
[SourceQuality "1"]
[TimeControl "40/5400+30:900+30"]

{[%evp 19,80,0,18,7,0,-18,-12,-25,-20,-23,-38,-20,-17,-43,-45,-54,-36,-29,-45,-56,0,-7,0,0,0,0,3,0,25,25,25,24,22,24,35,12,18,9,12,9,8,2,2,6,2,0,8,0,6,0,0,0,0,0,0,0,0,0,0,0,0,0,0]} 1. d4 {[%emt 0:00:03]} Nf6 {[%emt 0:00:11]} 2. c4 {[%emt 0:00:07]} e6 {[%emt 0:00:05]} 3. Nf3 {[%emt 0:00:08]} d5 {[%emt 0:00:04]} 4. Nc3 {[%emt 0:00:26]} c6 {[%emt 0:00:04]} 5. e3 {[%emt 0:00:49]} Nbd7 {[%emt 0:00:04]} 6. Qc2 {[%emt 0:00:14]} Bd6 {[%emt 0:00:05]} 7. b3 {[%emt 0:01:05]} O-O {[%emt 0:00:07]} 8. Be2 {[%emt 0:00:14]} b6 {[%emt 0:00:05]} 9. O-O {[%emt 0:00:09]} Bb7 {[%emt 0:00:06]} 10. Bb2 {[%emt 0:00:09]} c5 {[%emt 0:00:20]} 11. Rfd1 {[%emt 0:08:32] D45: Semi-Slav: 5 e3.} cxd4 {[%emt 0:03:53] [#]} 12. exd4 $146 {[%emt 0:13:31]} ({Predecessor:} 12. Nb5 Be7 13. exd4 a6 14. Nc3 Rc8 15. Qd3 dxc4 16. bxc4 Qc7 17. Ng5 Rfd8 18. Qh3 h6 {1-0 (71) Murshed,N (2443)-Mohammad,J (2184) Dhaka 2015}) 12... a6 {[%emt 0:03:21]} 13. a4 {[%emt 0:05:09]} Rc8 {[%emt 0:06:24]} 14. Ba3 $1 {[%emt 0:15:48]} Bxa3 {[%emt 0:13:30]} 15. Rxa3 {[%emt 0:00:02]} Qe7 {[%emt 0:00:10]} 16. Nb1 {[%emt 0:05:50]} e5 {[%emt 0:13:30]} 17. Nxe5 {[%emt 0:05:44]} Nxe5 {[%emt 0:00:14]} 18. dxe5 {[%emt 0:00:01]} Qxe5 {[%emt 0:00:03] [#] Strongly threatening ...Rfe8.} 19. Bf3 {[%emt 0:01:15]} g5 {[%emt 0:14:18]} (19... Ne4 $15) 20. h3 {[%emt 0:11:30]} h5 {[%emt 0:04:11]} 21. Qe2 {[%emt 0:15:48]} Qxe2 {[%emt 0:21:21]} 22. Bxe2 {[%emt 0:00:02]} Rfe8 {[%emt 0:00:42]} 23. Ra2 {[%emt 0:02:39]} Rcd8 {[%emt 0:04:32]} 24. Nc3 {[%emt 0:04:40]} dxc4 $1 {[%emt 0:01:54] [#] Threatens to win with ...Rxd1+.} ({Resist} 24... d4 25. Rad2 $16) 25. Rxd8 {[%emt 0:00:06]} Rxd8 {[%emt 0:00:04]} 26. bxc4 {[%emt 0:02:30]} Rd6 {[%emt 0:04:59]} 27. a5 {[%emt 0:00:30]} bxa5 {[%emt 0:01:29] The position is equal.} 28. Rxa5 {[%emt 0:00:07]} g4 {[%emt 0:00:07]} 29. hxg4 {[%emt 0:01:04]} hxg4 {[%emt 0:00:09]} 30. c5 {[%emt 0:03:46]} Re6 {[%emt 0:00:05]} 31. Kh2 {[%emt 0:02:08]} Kg7 {[%emt 0:05:22]} 32. Kg3 {[%emt 0:01:09]} Bc8 {[%emt 0:02:03]} 33. Bc4 {[%emt 0:00:59]} ({Wrong is} 33. Bxg4 $2 Nxg4 34. Kxg4 Re3+ 35. Kf4 Rxc3 $19) 33... Re5 {[%emt 0:01:57]} 34. Bxa6 {[%emt 0:00:36]} Bxa6 {[%emt 0:00:21]} 35. Rxa6 {[%emt 0:00:01]} Rxc5 $11 {[%emt 0:00:01] KRN-KRN} 36. Ne2 {[%emt 0:00:21]} Rc4 {[%emt 0:00:47]} 37. Nf4 {[%emt 0:00:48]} Rc3+ {[%emt 0:00:52]} 38. f3 {[%emt 0:00:01]} gxf3 {[%emt 0:00:17]} 39. gxf3 {[%emt 0:00:02]} Rc4 {[%emt 0:01:12]} 40. Ra5 {[%emt 0:00:00]} Rd4 {[%emt 0:00:00] Weighted Error Value: White=0.05 (flawless) /Black=0.04 (flawless)} 1/2-1/2

[Event "2nd Serbia Open Masters 2022"]
[Site "Novi Sad"]
[Date "2022.06.28"]
[Round "1.37"]
[White "Koustav Chatterjee"]
[Black "Leskur, Dejan"]
[Result "1-0"]
[ECO "A88"]
[WhiteElo "2485"]
[BlackElo "2265"]
[Annotator "TA"]
[PlyCount "81"]
[EventDate "2022.06.28"]
[EventType "swiss"]
[EventCountry "SRB"]
[SourceTitle "playchess.com"]
[Source "ChessBase"]
[SourceQuality "1"]
[TimeControl "40/5400+30:900+30"]

{[%evp 17,81,22,39,40,39,19,32,-21,-14,-24,0,0,11,0,-8,-21,0,-39,-39,-48,-16,-52,-45,-39,-49,-35,33,19,53,29,46,23,93,92,134,135,231,127,232,204,402,388,369,238,237,218,411,388,387,343,330,137,135,73,481,467,479,487,474,413,539,535,1112,563,29980,5481]} 1. d4 {[%emt 0:00:31]} g6 {[%emt 0:00:20]} 2. Nf3 {[%emt 0:00:44]} Bg7 {[%emt 0:01:18]} 3. c4 {[%emt 0:00:24]} f5 {[%emt 0:00:19]} 4. g3 {[%emt 0:00:20]} Nf6 {[%emt 0:00:09]} 5. Bg2 {[%emt 0:00:05]} O-O {[%emt 0:00:20]} 6. O-O {[%emt 0:00:05]} d6 {[%emt 0:00:05]} 7. Nc3 {[%emt 0:00:06]} c6 {[%emt 0:00:05]} 8. d5 {[%emt 0:01:40]} Bd7 {[%emt 0:01:20]} 9. Nd4 {[%emt 0:04:19]} Qb6 {[%emt 0:00:37]} 10. Rb1 {[%emt 0:18:32] A88: Dutch Defence: Leningrad System: 5 Nf3 0-0 6 0-0 d6 7 Nc3 c6.} a5 {[%emt 0:11:46]} 11. e3 {[%emt 0:15:26]} Na6 {[%emt 0:01:52] [#]} 12. Nce2 $146 {[%emt 0:03:18]} (12. b3 $14) ({Predecessor:} 12. b3 Rfe8 13. Bb2 e5 14. dxe6 Bxe6 15. Nxe6 Rxe6 16. Ne2 Rd8 17. Nf4 Ree8 18. Qc2 Qc7 19. a3 Nc5 20. b4 axb4 21. axb4 Nce4 22. Rfc1 Ng4 {½-½ (22) Pogorelov,R (2445)-Marin,M (2520) Berga 1995}) 12... cxd5 {[%emt 0:08:28]} 13. cxd5 {[%emt 0:00:12]} Nb4 {[%emt 0:02:55]} 14. Nc3 {[%emt 0:07:16]} Rfc8 {[%emt 0:01:34]} 15. a3 {[%emt 0:01:21]} Na6 {[%emt 0:00:11][%cal Oc8c3] [#] And now ...Rxc3! would win.} 16. Nce2 {[%emt 0:00:06]} Nc7 {[%emt 0:14:56]} 17. Nf4 {[%emt 0:08:53]} Ne4 {[%emt 0:00:57]} 18. Qd3 {[%emt 0:15:02] Against Nc3} Nc5 {[%emt 0:17:21]} (18... Na6 {looks sharper.} 19. Bd2 Bxd4 20. exd4 Bb5) 19. Qe2 {[%emt 0:01:41]} Nb5 {[%emt 0:01:04]} 20. Bd2 {[%emt 0:01:12]} Nxd4 {[%emt 0:13:06]} 21. exd4 {[%emt 0:00:08]} Nb3 {[%emt 0:00:10]} (21... Ne4 $15 22. Bxe4 fxe4) 22. Bc3 $14 {[%emt 0:01:58]} Re8 {[%emt 0:02:29]} 23. Rbd1 {[%emt 0:00:57]} Qb5 {[%emt 0:03:36]} (23... Nxd4 24. Qe3 $16) (23... Bxd4 $2 24. Bxd4 Nxd4 25. Qe3 $18) 24. Qe3 {[%emt 0:01:18]} (24. Rd3 $5 {[%cal Rf4e6]}) 24... Rac8 {[%emt 0:00:59]} (24... Qa4 $11) 25. h4 $16 {[%emt 0:02:20][%cal Bh2h4,Bh4h5][%mdl 32]} Bh6 {[%emt 0:05:22]} 26. h5 {[%emt 0:03:51]} Qc4 {[%emt 0:01:28]} (26... Qb6 $16 27. Rfe1 (27. hxg6 hxg6 28. Qf3 Kg7 $16) 27... Qc7) 27. Qf3 {[%emt 0:01:13]} (27. Rfe1 $18) 27... Kf7 {[%emt 0:02:34]} (27... g5 $16 28. Ne6 Bxe6 29. dxe6 b5) 28. Ne6 {[%emt 0:01:37]} b5 $2 {[%emt 0:06:11]} (28... Bxe6 29. dxe6+ Kg8) 29. hxg6+ $18 {[%emt 0:01:31]} hxg6 {[%emt 0:00:01]} 30. g4 {[%emt 0:01:05]} Bxe6 {[%emt 0:01:25]} 31. dxe6+ {[%emt 0:00:08]} Kxe6 $2 {[%emt 0:00:07]} (31... Qxe6 $2 32. Rfe1 Qf6 33. Qd5+ e6 34. Qxb3 $18) (31... Kg8) 32. Rfe1+ {[%emt 0:04:00][%mdl 64] [#] Deflection} Kd7 {[%emt 0:00:09]} 33. Bf1 {[%emt 0:00:06] Chess con chili.} (33. gxf5 b4 $18) 33... Qc6 {[%emt 0:00:33]} 34. d5 {[%emt 0:01:42]} ({Weaker is} 34. Qe2 e6 $16) (34. Qh3 $18 {and White stays clearly on top.}) 34... Qb6 $16 {[%emt 0:00:14]} 35. Qe2 {[%emt 0:00:29]} (35. gxf5 $142 gxf5 36. Qxf5+ Kc7 37. Qc2 (37. Bh3 Rg8+ 38. Kh1 Rcf8 $18)) 35... Rb8 $2 {[%emt 0:01:04][%mdl 8192] Loses the game.} (35... b4 $16 36. axb4 axb4 37. Qb5+ (37. Bh8 Bd2 $15) 37... Kc7 38. Bxb4 Rb8 39. Qxb6+ (39. Qc4+ Kd8 $16) 39... Rxb6) 36. Qe6+ $18 {[%emt 0:01:23]} Kc7 {[%emt 0:00:14]} 37. Qxg6 {[%emt 0:00:12]} b4 {[%emt 0:00:55]} 38. Bf6 {[%emt 0:01:13] A strong pair of Bishops.} ({Not} 38. Qxh6 bxc3 39. bxc3 fxg4 $16) 38... Nd2 {[%emt 0:00:43]} 39. Kg2 {[%emt 0:01:16] Inhibits Nf3. Threatens to win with Rc1+.} Bf4 {[%emt 0:02:23]} 40. Qxf5 {[%emt 0:00:00] Rc1+ is the strong threat.} exf6 {[%emt 0:00:00]} 41. Rc1+ {[%emt 0:01:27] Weighted Error Value: White=0.37/Black=0.71} 1-0

[Event "2nd Serbia Open Masters 2022"]
[Site "Novi Sad"]
[Date "2022.06.28"]
[Round "1.38"]
[White "Saurabh Anand"]
[Black "Song, Raymond"]
[Result "1/2-1/2"]
[ECO "B92"]
[WhiteElo "2263"]
[BlackElo "2485"]
[Annotator "TA"]
[PlyCount "92"]
[EventDate "2022.06.28"]
[EventType "swiss"]
[EventCountry "SRB"]
[SourceTitle "playchess.com"]
[Source "ChessBase"]
[SourceQuality "1"]
[TimeControl "40/5400+30:900+30"]

{[%evp 14,92,0,-1,0,0,2,0,0,0,0,0,0,-2,0,-9,0,-15,0,0,15,11,12,18,41,35,43,39,37,38,48,14,12,14,17,12,9,-34,0,-8,7,6,7,-5,29,0,29,0,33,24,29,29,15,-8,-8,-8,0,0,0,-68,-8,-15,0,0,31,0,0,0,0,0,0,0,0,0,0,0,0,0,0,0,0]} 1. e4 {[%emt 0:00:11]} c5 {[%emt 0:00:22]} 2. Nf3 {[%emt 0:00:46]} d6 {[%emt 0:00:09]} 3. d4 {[%emt 0:00:43]} cxd4 {[%emt 0:00:07]} 4. Nxd4 {[%emt 0:00:05]} Nf6 {[%emt 0:00:07]} 5. Nc3 {[%emt 0:00:05]} a6 {[%emt 0:00:05]} 6. Be2 {[%emt 0:02:39]} e5 {[%emt 0:00:10]} 7. Nf3 {[%emt 0:00:23]} Be7 {[%emt 0:00:40]} 8. Bg5 {[%emt 0:02:15]} Be6 {[%emt 0:00:29] B92: Sicilian Najdorf: 6 Be2.} 9. Bxf6 {[%emt 0:00:58]} Bxf6 {[%emt 0:00:07]} 10. Nd5 {[%emt 0:00:09]} Nd7 {[%emt 0:00:12]} 11. Bc4 {[%emt 0:00:18]} O-O {[%emt 0:00:18][%cal Bh8f8,Bf8c8,Bc8c4][%mdl 32]} 12. O-O {[%emt 0:00:38]} Qc8 {[%emt 0:00:31] [#]} 13. Nxf6+ $146 {[%emt 0:06:01]} ({Predecessor:} 13. Qe2 Bd8 14. Rad1 b5 15. Bb3 Nc5 16. c3 Nxb3 17. axb3 Qb7 18. b4 g6 19. h4 {0-1 (72) Krysa,L (2527)-Mekhitarian,K (2554) Chess.com INT 2021}) 13... Nxf6 {[%emt 0:00:06]} 14. Bxe6 {[%emt 0:00:15]} Qxe6 {[%emt 0:00:08]} 15. Re1 {[%emt 0:04:46]} Rfc8 {[%emt 0:00:57]} 16. c3 {[%emt 0:00:22]} Rc4 {[%emt 0:03:05]} 17. Nd2 {[%emt 0:03:35]} Rc6 {[%emt 0:00:17]} 18. Qb3 {[%emt 0:01:24]} Qe7 {[%emt 0:04:07]} 19. Nc4 {[%emt 0:00:53]} Qc7 {[%emt 0:12:10]} 20. Ne3 {[%emt 0:00:57]} g6 {[%emt 0:01:49]} (20... Nxe4 $2 21. Nd5 Nc5 22. Nxc7 $18) 21. Rad1 {[%emt 0:04:01]} b5 {[%emt 0:00:23]} 22. Nd5 {[%emt 0:03:52]} Nxd5 {[%emt 0:00:49]} 23. Rxd5 {[%emt 0:00:10]} Rb8 {[%emt 0:00:11]} 24. Red1 {[%emt 0:00:48]} Rbb6 {[%emt 0:01:28]} 25. Qa3 {[%emt 0:05:59]} Kg7 {[%emt 0:01:43]} 26. f3 {[%emt 0:08:32]} Qe7 {[%emt 0:01:07]} 27. Qb3 {[%emt 0:02:36]} Qg5 {[%emt 0:00:29]} 28. Qc2 {[%emt 0:02:00]} h5 {[%emt 0:09:50]} 29. Qd2 {[%emt 0:04:03]} Qf6 {[%emt 0:00:07]} 30. Qe3 {[%emt 0:00:29]} h4 {[%emt 0:00:55][%cal Oh4h3]} 31. h3 {[%emt 0:00:34]} a5 {[%emt 0:03:10]} 32. Qd3 {[%emt 0:01:26]} b4 {[%emt 0:01:44]} 33. Rxa5 {[%emt 0:01:57]} bxc3 {[%emt 0:00:39]} 34. bxc3 {[%emt 0:00:11]} Rb2 {[%emt 0:03:31]} 35. Rd2 {[%emt 0:04:33]} Rcb6 {[%emt 0:11:16] [#] Hoping for ...Qg5.} 36. Qe3 {[%emt 0:00:22] Inhibits Qg5.} (36. Rxb2 $11 Rxb2 37. Qe3) 36... Rxd2 {[%emt 0:06:06]} (36... Rb1+ $15 37. Kf2 Qe7) 37. Qxd2 $15 {[%emt 0:00:18][%mdl 4096] Endgame KQR-KQR} Qd8 {[%emt 0:00:30]} (37... Rb1+ {is more complex.} 38. Kh2 d5 39. Qe3 d4) 38. Kh2 {[%emt 0:02:35]} Qc7 {[%emt 0:05:19] ...Rb1 is the strong threat.} (38... Rb1 $5 {[%cal Rd8b6]} 39. Ra6 Ra1 $14) 39. Ra4 {[%emt 0:06:09]} Rb1 {[%emt 0:02:14] The position is equal.} 40. Rb4 {[%emt 0:00:00]} Ra1 {[%emt 0:00:00]} 41. Qb2 {[%emt 0:00:57]} Rf1 {[%emt 0:01:42]} 42. Rb8 {[%emt 0:03:12]} Qe7 {[%emt 0:04:30]} (42... Qc5 $5 43. Qb6 Qxc3 44. Qxd6 (44. Qd8 Rh1+ 45. Kxh1 Qe1+ 46. Kh2 Qg3+ 47. Kh1 Qe1+ 48. Kh2 Qg3+ 49. Kh1 Qe1+ $11) 44... Rh1+ 45. Kxh1 Qe1+ 46. Kh2 Qg3+ 47. Kh1 Qe1+ 48. Kh2 Qg3+ 49. Kh1 Qe1+ $11) 43. Qe2 {[%emt 0:04:21]} Ra1 {[%emt 0:00:10]} 44. Qb2 {[%emt 0:00:24]} Rf1 {[%emt 0:00:06]} 45. Qe2 {[%emt 0:00:59]} Ra1 {[%emt 0:00:05] [#] ( -> ...Qa7)} 46. Qb2 {[%emt 0:00:15]} Rf1 {[%emt 0:00:05] Weighted Error Value: White=0.10 (very precise) /Black=0.09 (flawless)} 1/2-1/2